[Event "Mistrovství Čech mládeže 2023 - HD14"]
[Site "Harrachov, Czech Republic"]
[Date "2023.10.28"]
[Round "9.13"]
[White "Čech, Nicolas"]
[Black "Bělaška, Adam"]
[Result "0-1"]
[TimeControl "90m + 30s"]
[WhiteElo "1399"]
[BlackElo "1503"]

1. e4 {[%clk 01:30:57]} {[%emt 00:00:02]} c5 {[%clk 01:30:59]} {[%emt
00:00:02]} 2. Nf3 {[%clk 01:31:20]} {[%emt 00:00:07]} d6 {[%clk 01:31:25]}
{[%emt 00:00:03]} 3. d4 {[%clk 01:31:44]} {[%emt 00:00:07]} cxd4 {[%clk
01:31:53]} {[%emt 00:00:03]} 4. Nxd4 {[%clk 01:32:05]} {[%emt 00:00:08]} Nf6
{[%clk 01:32:17]} {[%emt 00:00:05]} 5. Nc3 {[%clk 01:32:22]} {[%emt 00:00:13]}
a6 {[%clk 01:32:36]} {[%emt 00:00:12]} 6. f4 {[%clk 01:32:07]} {[%emt
00:00:44]} e6 {[%clk 01:32:39]} {[%emt 00:00:27]} 7. Bd3 {[%clk 01:31:34]}
{[%emt 00:01:04]} b5 {[%clk 01:32:54]} {[%emt 00:00:15]} 8. Be3 {[%clk
01:31:00]} {[%emt 00:01:05]} Bb7 {[%clk 01:32:45]} {[%emt 00:00:37]} 9. Qf3
{[%clk 01:29:49]} {[%emt 00:01:40]} Nbd7 {[%clk 01:32:27]} {[%emt 00:00:49]} 10.
O-O {[%clk 01:29:37]} {[%emt 00:00:43]} Be7 {[%clk 01:32:04]} {[%emt 00:00:51]}
11. Rae1 {[%clk 01:28:35]} {[%emt 00:01:32]} Nc5 {[%clk 01:31:39]} {[%emt
00:00:57]} 12. Bf2 {[%clk 01:27:35]} {[%emt 00:01:29]} Nxd3 {[%clk 01:29:44]}
{[%emt 00:02:25]} 13. cxd3 {[%clk 01:27:25]} {[%emt 00:00:40]} Nd7 {[%clk
01:29:30]} {[%emt 00:00:45]} 14. Qh5 {[%clk 01:26:33]} {[%emt 00:01:21]} Nc5
{[%clk 01:28:11]} {[%emt 00:01:48]} 15. Rd1 {[%clk 01:24:46]} {[%emt 00:02:17]}
b4 {[%clk 01:25:18]} {[%emt 00:03:24]} 16. Nce2 {[%clk 01:22:37]} {[%emt
00:02:39]} a5 {[%clk 01:25:01]} {[%emt 00:00:47]} 17. Nf3 {[%clk 01:20:59]}
{[%emt 00:02:08]} Ba6 {[%clk 01:24:29]} {[%emt 00:01:02]} 18. Bxc5 {[%clk
01:19:31]} {[%emt 00:01:58]} dxc5 {[%clk 01:24:45]} {[%emt 00:00:14]} 19. Ne5
{[%clk 01:18:42]} {[%emt 00:01:19]} O-O {[%clk 01:24:10]} {[%emt 00:01:05]} 20.
Rf3 {[%clk 01:18:06]} {[%emt 00:01:06]} f6 {[%clk 01:21:23]} {[%emt 00:03:13]}
21. Nc6 {[%clk 01:15:20]} {[%emt 00:03:20]} Qe8 {[%clk 01:21:20]} {[%emt
00:00:33]} 22. Nxe7+ {[%clk 01:14:21]} {[%emt 00:01:29]} Qxe7 {[%clk 01:21:49]}
{[%emt 00:00:02]} 23. Rh3 {[%clk 01:12:25]} {[%emt 00:02:25]} g6 {[%clk
01:21:55]} {[%emt 00:00:24]} 24. Qh4 {[%clk 01:07:41]} {[%emt 00:05:14]} Rf7
{[%clk 01:20:51]} {[%emt 00:01:35]} 25. Qf2 {[%clk 01:05:54]} {[%emt 00:02:16]}
Rd8 {[%clk 01:20:58]} {[%emt 00:00:22]} 26. Nc1 {[%clk 01:05:22]} {[%emt
00:01:03]} c4 {[%clk 01:20:35]} {[%emt 00:00:53]} 27. Qc2 {[%clk 01:05:18]}
{[%emt 00:00:34]} Qa7+ {[%clk 01:20:28]} {[%emt 00:00:37]} 28. Kh1 {[%clk
01:05:02]} {[%emt 00:00:47]} Rfd7 {[%clk 01:20:36]} {[%emt 00:00:23]} 29. Qd2
{[%clk 00:57:15]} {[%emt 00:08:15]} Qd4 {[%clk 01:19:21]} {[%emt 00:01:46]} 30.
Ne2 {[%clk 00:56:43]} {[%emt 00:01:01]} Qxe4 {[%clk 01:18:53]} {[%emt
00:01:00]} 31. Re3 {[%clk 00:53:23]} {[%emt 00:03:49]} Rxd3 {[%clk 01:18:12]}
{[%emt 00:01:12]} 32. Rxe4 {[%clk 00:52:02]} {[%emt 00:01:50]} Rxd2 {[%clk
01:18:32]} {[%emt 00:00:10]} 33. Rxd2 {[%clk 00:52:08]} {[%emt 00:00:24]} Rxd2
{[%clk 01:19:01]} {[%emt 00:00:02]} 34. Rxe6 {[%clk 00:52:24]} {[%emt
00:00:14]} Bb7 {[%clk 01:17:23]} {[%emt 00:02:06]} 35. Kg1 {[%clk 00:51:23]}
{[%emt 00:01:32]} Rxb2 {[%clk 01:17:35]} {[%emt 00:00:18]} 0-1

[Event "Mistrovství Čech mládeže 2023 - HD14"]
[Site "Harrachov, Czech Republic"]
[Date "2023.10.28"]
[Round "9.14"]
[White "Malý, Jiří"]
[Black "Denko, Otakar"]
[Result "1/2-1/2"]
[TimeControl "90m + 30s"]
[WhiteElo "1490"]
[BlackElo "1417"]

1. e4 {[%clk 01:30:51]} {[%emt 00:00:08]} c6 {[%clk 01:30:54]} {[%emt
00:00:06]} 2. c4 {[%clk 01:30:23]} {[%emt 00:00:58]} d5 {[%clk 01:29:17]}
{[%emt 00:02:07]} 3. cxd5 {[%clk 01:29:55]} {[%emt 00:00:58]} cxd5 {[%clk
01:29:40]} {[%emt 00:00:07]} 4. exd5 {[%emt 00:00:58]} Qxd5 {[%emt 00:01:01]} 5.
Nc3 {[%emt 00:00:42]} Qd8 {[%emt 00:01:18]} 6. d4 {[%clk 01:27:09]} {[%emt
00:01:33]} Nf6 7. Nf3 {[%emt 00:05:32]} e6 {[%emt 00:04:16]} 8. Bf4 {[%emt
00:01:37]} a6 {[%clk 01:21:31]} {[%emt 00:02:57]} 9. Bd3 {[%clk 01:15:46]}
{[%emt 00:07:53]} Nc6 {[%emt 00:04:47]} 10. O-O {[%clk 01:12:15]} {[%emt
00:02:10]} Bd6 {[%emt 00:02:53]} 11. Bxd6 {[%clk 01:10:55]} {[%emt 00:00:18]}
Qxd6 {[%emt 00:01:22]} 12. Ne4 {[%emt 00:02:15]} Nxe4 {[%clk 01:16:36]} {[%emt
00:00:46]} 13. Bxe4 {[%emt 00:01:27]} O-O {[%emt 00:03:51]} 14. Qd2 {[%clk
01:02:57]} {[%emt 00:03:06]} h6 {[%clk 01:14:20]} {[%emt 00:02:36]} 15. Rac1
{[%clk 01:00:34]} {[%emt 00:02:52]} Bd7 {[%emt 00:03:27]} 16. Rfd1 {[%emt
00:08:08]} Rab8 {[%clk 01:05:04]} {[%emt 00:01:32]} 17. d5 {[%clk 00:56:31]}
{[%emt 00:02:13]} Ne5 {[%clk 00:58:38]} {[%emt 00:06:55]} 18. dxe6 {[%clk
00:53:56]} {[%emt 00:03:05]} Qxe6 {[%clk 00:57:40]} {[%emt 00:01:29]} 19. Qd6
{[%clk 00:47:16]} {[%emt 00:07:10]} Nxf3+ {[%clk 00:56:57]} {[%emt 00:01:12]}
20. Bxf3 {[%clk 00:47:01]} {[%emt 00:00:46]} Qxd6 {[%clk 00:56:39]} {[%emt
00:00:48]} 21. Rxd6 {[%clk 00:47:00]} {[%emt 00:00:31]} Be6 {[%clk 00:55:01]}
{[%emt 00:02:08]} 22. a3 {[%clk 00:43:24]} {[%emt 00:04:06]} Rfc8 {[%clk
00:53:02]} {[%emt 00:02:27]} 23. Rdd1 {[%clk 00:39:03]} {[%emt 00:04:52]} Rxc1
{[%clk 00:52:26]} {[%emt 00:01:06]} 24. Rxc1 {[%clk 00:39:25]} {[%emt
00:00:07]} b6 {[%clk 00:52:43]} {[%emt 00:00:15]} 25. h3 {[%clk 00:37:48]}
{[%emt 00:02:06]} a5 {[%clk 00:52:54]} {[%emt 00:00:19]} 26. Rc7 {[%clk
00:35:39]} {[%emt 00:02:39]} g6 {[%clk 00:51:25]} {[%emt 00:01:59]} 27. Kf1
{[%clk 00:28:07]} {[%emt 00:08:02]} Rc8 {[%clk 00:49:42]} {[%emt 00:02:11]} 28.
Rxc8+ {[%clk 00:27:26]} {[%emt 00:01:13]} Bxc8 {[%clk 00:50:04]} {[%emt
00:00:08]} 29. h4 {[%clk 00:27:35]} {[%emt 00:00:20]} Kf8 {[%clk 00:50:08]}
{[%emt 00:00:26]} 30. g3 {[%clk 00:27:45]} {[%emt 00:00:19]} f6 {[%clk
00:50:25]} {[%emt 00:00:14]} 31. Ke1 {[%clk 00:26:41]} {[%emt 00:01:34]} Ke7
{[%clk 00:50:19]} {[%emt 00:00:33]} 32. Kd2 {[%clk 00:25:46]} {[%emt 00:01:27]}
g5 {[%clk 00:50:13]} {[%emt 00:00:37]} 33. hxg5 {[%clk 00:25:14]} {[%emt
00:01:01]} fxg5 {[%clk 00:49:45]} {[%emt 00:00:58]} 34. Ke3 {[%clk 00:24:21]}
{[%emt 00:01:23]} Kd6 {[%clk 00:49:37]} 1/2-1/2

[Event "Mistrovství Čech mládeže 2023 - HD14"]
[Site "Harrachov, Czech Republic"]
[Date "2023.10.28"]
[Round "9.15"]
[White "Jun, Rostislav"]
[Black "Petrášek, Jiří"]
[Result "0-1"]
[TimeControl "90m + 30s"]
[WhiteElo "1360"]
[BlackElo "1423"]

1. g3 {[%clk 01:29:18]} {[%emt 00:01:41]} d5 {[%clk 01:30:28]} {[%emt
00:00:32]} 2. Bg2 {[%clk 01:29:30]} {[%emt 00:00:18]} Nf6 {[%clk 01:29:35]}
{[%emt 00:01:23]} 3. d4 {[%clk 01:29:34]} {[%emt 00:00:26]} c6 {[%clk
01:29:39]} {[%emt 00:00:26]} 4. Nc3 {[%clk 01:29:20]} {[%emt 00:00:44]} Bf5
{[%clk 01:29:26]} {[%emt 00:00:42]} 5. f4 {[%clk 01:24:48]} {[%emt 00:05:02]}
e6 {[%clk 01:25:39]} {[%emt 00:04:17]} 6. e3 {[%clk 01:22:58]} {[%emt
00:02:20]} Bb4 {[%clk 01:25:02]} {[%emt 00:01:07]} 7. Bd2 {[%clk 01:23:18]}
{[%emt 00:00:10]} Nbd7 {[%clk 01:23:47]} {[%emt 00:01:45]} 8. Nge2 {[%clk
01:21:40]} {[%emt 00:02:07]} O-O {[%clk 01:15:27]} {[%emt 00:08:50]} 9. a3
{[%clk 01:21:43]} {[%emt 00:00:28]} Ba5 {[%clk 01:15:18]} {[%emt 00:00:38]} 10.
b4 {[%clk 01:22:05]} {[%emt 00:00:08]} Bc7 {[%clk 01:14:51]} {[%emt 00:00:57]}
11. O-O {[%clk 01:21:18]} {[%emt 00:01:17]} Nb6 {[%clk 01:13:43]} {[%emt
00:01:37]} 12. Nc1 {[%clk 01:16:44]} {[%emt 00:05:04]} Nc4 {[%clk 01:11:23]}
{[%emt 00:02:50]} 13. Nd3 {[%clk 01:16:59]} {[%emt 00:00:16]} Bg4 {[%clk
01:06:34]} {[%emt 00:05:18]} 14. Bf3 {[%clk 01:15:03]} {[%emt 00:02:26]} Bxf3
{[%clk 01:06:16]} {[%emt 00:00:48]} 15. Rxf3 {[%clk 01:15:30]} {[%emt
00:00:03]} Ne4 {[%clk 01:06:27]} {[%emt 00:00:19]} 16. Be1 {[%clk 01:14:47]}
{[%emt 00:01:13]} f5 {[%clk 00:46:22]} {[%emt 00:20:36]} 17. Ne5 {[%clk
01:12:32]} {[%emt 00:02:45]} Bxe5 {[%clk 00:45:58]} {[%emt 00:00:54]} 18. dxe5
{[%clk 01:12:28]} {[%emt 00:00:35]} Qc7 {[%clk 00:36:31]} {[%emt 00:09:57]} 19.
Qe2 {[%clk 01:11:28]} {[%emt 00:01:29]} b5 {[%clk 00:35:03]} {[%emt 00:01:59]}
20. Rf1 {[%clk 01:08:35]} {[%emt 00:03:22]} Qb6 {[%clk 00:31:25]} {[%emt
00:04:08]} 21. Rf3 {[%clk 01:03:54]} {[%emt 00:05:11]} d4 {[%clk 00:25:33]}
{[%emt 00:06:22]} 22. Nxe4 {[%clk 00:59:09]} {[%emt 00:05:15]} fxe4 {[%clk
00:25:47]} {[%emt 00:00:16]} 23. Rf2 {[%clk 00:59:02]} {[%emt 00:00:38]} Nxe3
{[%clk 00:23:07]} {[%emt 00:03:10]} 24. Kh1 {[%clk 00:53:58]} {[%emt 00:05:34]}
Rad8 {[%clk 00:19:37]} {[%emt 00:04:00]} 25. Qd2 {[%clk 00:52:03]} {[%emt
00:02:26]} Nc4 {[%clk 00:18:11]} {[%emt 00:01:55]} 26. Qc1 {[%clk 00:51:01]}
{[%emt 00:01:31]} e3 {[%clk 00:17:16]} {[%emt 00:01:25]} 27. Rg2 {[%clk
00:50:32]} {[%emt 00:00:59]} Qb7 {[%clk 00:16:11]} {[%emt 00:01:35]} 28. Kg1
{[%clk 00:50:15]} {[%emt 00:00:47]} Qb6 {[%clk 00:15:47]} {[%emt 00:00:55]} 29.
Kh1 {[%clk 00:49:31]} {[%emt 00:01:13]} c5 {[%clk 00:12:57]} {[%emt 00:03:20]}
30. Kg1 {[%clk 00:47:12]} {[%emt 00:02:49]} Rf7 {[%clk 00:09:26]} {[%emt
00:04:00]} 31. bxc5 {[%clk 00:45:36]} {[%emt 00:02:07]} Qxc5 {[%clk 00:09:34]}
{[%emt 00:00:23]} 32. Ba5 {[%clk 00:46:03]} {[%emt 00:00:03]} Nxa5 {[%clk
00:09:47]} {[%emt 00:00:17]} 0-1

[Event "Mistrovství Čech mládeže 2023 - HD14"]
[Site "Harrachov, Czech Republic"]
[Date "2023.10.28"]
[Round "9.16"]
[White "Jančík, Vojtěch"]
[Black "Seidl, Václav"]
[Result "0-1"]
[TimeControl "90m + 30s"]
[WhiteElo "1219"]
[BlackElo "1478"]

1. e4 {[%clk 01:30:50]} {[%emt 00:00:08]} c5 {[%clk 01:30:56]} {[%emt
00:00:06]} 2. Nf3 {[%clk 01:30:34]} {[%emt 00:00:46]} d6 {[%clk 01:31:20]}
{[%emt 00:00:06]} 3. d4 {[%clk 01:30:59]} {[%emt 00:00:05]} cxd4 {[%clk
01:31:46]} {[%emt 00:00:05]} 4. Nxd4 {[%clk 01:31:23]} {[%emt 00:00:06]} Nf6
{[%clk 01:32:10]} {[%emt 00:00:05]} 5. Nc3 {[%clk 01:31:07]} {[%emt 00:00:46]}
a6 {[%clk 01:32:32]} {[%emt 00:00:08]} 6. Be3 {[%clk 01:30:32]} {[%emt
00:01:04]} e5 {[%clk 01:31:47]} {[%emt 00:01:16]} 7. Nb3 {[%clk 01:28:14]}
{[%emt 00:02:48]} Be6 {[%clk 01:32:02]} {[%emt 00:00:14]} 8. f3 {[%clk
01:26:03]} {[%emt 00:02:41]} Be7 {[%clk 01:31:33]} {[%emt 00:00:58]} 9. Nd5
{[%clk 01:25:49]} {[%emt 00:00:45]} Nxd5 {[%clk 01:29:25]} {[%emt 00:02:37]} 10.
exd5 {[%clk 01:24:16]} {[%emt 00:02:03]} Bf5 {[%clk 01:28:21]} {[%emt
00:01:32]} 11. Bd3 {[%clk 01:23:54]} {[%emt 00:00:54]} Bxd3 {[%clk 01:26:51]}
{[%emt 00:01:59]} 12. Qxd3 {[%clk 01:24:15]} {[%emt 00:00:09]} Nd7 {[%clk
01:26:41]} {[%emt 00:00:39]} 13. O-O {[%clk 01:24:05]} {[%emt 00:00:41]} O-O
{[%clk 01:25:42]} {[%emt 00:01:29]} 14. Rfe1 {[%clk 01:18:36]} {[%emt
00:05:59]} Bg5 {[%clk 01:24:13]} {[%emt 00:01:59]} 15. a4 {[%clk 01:16:18]}
{[%emt 00:02:49]} Bxe3+ {[%clk 01:22:59]} {[%emt 00:01:43]} 16. Rxe3 {[%clk
01:16:32]} {[%emt 00:00:17]} f5 {[%clk 01:22:11]} {[%emt 00:01:16]} 17. a5
{[%clk 01:09:35]} {[%emt 00:07:28]} Qc7 {[%clk 01:20:35]} {[%emt 00:02:03]} 18.
Qd2 {[%clk 01:04:54]} {[%emt 00:05:15]} Rac8 {[%clk 01:18:37]} {[%emt
00:02:26]} 19. Rc3 {[%clk 01:05:03]} {[%emt 00:00:21]} Qb8 {[%clk 01:18:37]}
{[%emt 00:00:29]} 20. Ra4 {[%clk 01:05:18]} {[%emt 00:00:16]} Rc7 {[%clk
01:12:01]} {[%emt 00:07:05]} 21. Rac4 {[%clk 01:03:03]} {[%emt 00:02:46]} Rfc8
{[%clk 01:11:15]} {[%emt 00:01:14]} 22. Qd3 {[%clk 00:55:19]} {[%emt 00:08:15]}
Rxc4 {[%clk 01:09:32]} {[%emt 00:02:13]} 23. Rxc4 {[%clk 00:54:40]} {[%emt
00:01:09]} g6 {[%clk 01:09:13]} {[%emt 00:00:49]} 24. g3 {[%clk 00:32:32]}
{[%emt 00:22:39]} Rc7 {[%clk 01:05:55]} {[%emt 00:03:46]} 25. Qc3 {[%clk
00:30:04]} {[%emt 00:02:59]} Rxc4 {[%clk 01:04:15]} {[%emt 00:02:10]} 26. Qxc4
{[%clk 00:29:49]} {[%emt 00:00:45]} Qd8 {[%clk 01:04:32]} {[%emt 00:00:12]} 27.
Kg2 {[%clk 00:27:32]} {[%emt 00:02:48]} Nf6 {[%clk 01:02:16]} {[%emt 00:02:45]}
28. h3 {[%clk 00:16:48]} {[%emt 00:11:15]} Ne8 {[%clk 01:00:44]} {[%emt
00:02:02]} 29. Qb4 {[%clk 00:15:15]} {[%emt 00:02:04]} Qc7 {[%clk 01:00:05]}
{[%emt 00:01:06]} 30. c4 {[%clk 00:15:02]} {[%emt 00:00:46]} Nf6 {[%clk
00:54:01]} {[%emt 00:06:33]} 31. Nd2 {[%clk 00:14:02]} {[%emt 00:01:31]} Nd7
{[%clk 00:53:27]} {[%emt 00:01:04]} 32. Qc3 {[%clk 00:13:10]} {[%emt 00:01:22]}
b6 {[%clk 00:51:44]} {[%emt 00:02:12]} 33. axb6 {[%clk 00:11:47]} {[%emt
00:01:54]} Nxb6 {[%clk 00:51:26]} {[%emt 00:00:48]} 34. Qd3 {[%clk 00:10:26]}
{[%emt 00:01:51]} Qc5 {[%clk 00:50:42]} {[%emt 00:01:12]} 35. b3 {[%clk
00:07:02]} {[%emt 00:03:56]} a5 {[%clk 00:48:30]} {[%emt 00:02:40]} 36. Qc3
{[%clk 00:05:22]} {[%emt 00:02:11]} Nxd5 {[%clk 00:47:27]} {[%emt 00:01:34]} 37.
Qa1 {[%clk 00:03:15]} {[%emt 00:02:37]} Ne3+ {[%clk 00:44:37]} {[%emt
00:03:19]} 38. Kh2 {[%clk 00:03:27]} {[%emt 00:00:20]} Nc2 {[%clk 00:42:46]}
{[%emt 00:02:20]} 39. Qa4 {[%clk 00:02:34]} {[%emt 00:01:23]} Qf2+ {[%clk
00:42:23]} {[%emt 00:00:52]} 40. Kh1 {[%clk 00:02:53]} {[%emt 00:00:12]} Qe1+
{[%clk 00:42:43]} {[%emt 00:00:08]} 41. Kh2 {[%clk 00:03:09]} {[%emt 00:00:16]}
Qxd2+ {[%clk 00:43:03]} {[%emt 00:00:11]} 42. Kh1 {[%clk 00:03:33]} {[%emt
00:00:06]} Qe1+ {[%clk 00:42:18]} {[%emt 00:01:14]} 43. Kh2 {[%clk 00:03:58]}
{[%emt 00:00:05]} Qf2+ {[%clk 00:42:39]} {[%emt 00:00:09]} 44. Kh1 {[%clk
00:04:22]} {[%emt 00:00:07]} Qxf3+ {[%clk 00:42:56]} {[%emt 00:00:12]} 45. Kh2
{[%clk 00:04:38]} {[%emt 00:00:14]} Qb7 {[%clk 00:40:00]} {[%emt 00:03:23]} 46.
b4 {[%clk 00:03:35]} {[%emt 00:01:36]} Ne3 {[%clk 00:33:12]} {[%emt 00:07:15]}
0-1

[Event "Mistrovství Čech mládeže 2023 - HD14"]
[Site "Harrachov, Czech Republic"]
[Date "2023.10.28"]
[Round "9.17"]
[White "Holeš, Vojta"]
[Black "Stibor, Ondřej"]
[Result "0-1"]
[TimeControl "90m + 30s"]
[WhiteElo "1440"]
[BlackElo "1170"]

1. e4 {[%clk 01:30:28]} e5 {[%clk 01:30:55]} {[%emt 00:00:06]} 2. Nf3 {[%clk
01:31:25]} {[%emt 00:00:04]} Nc6 {[%clk 01:31:20]} {[%emt 00:00:05]} 3. d4
{[%clk 01:31:51]} {[%emt 00:00:04]} exd4 {[%clk 01:31:23]} {[%emt 00:00:26]} 4.
Bc4 {[%clk 01:32:15]} {[%emt 00:00:06]} Nf6 {[%clk 01:31:47]} {[%emt 00:00:05]}
5. O-O {[%clk 01:32:32]} {[%emt 00:00:14]} d5 {[%clk 01:32:02]} {[%emt
00:00:14]} 6. exd5 {[%clk 01:32:12]} {[%emt 00:00:50]} Nxd5 {[%clk 01:32:16]}
{[%emt 00:00:16]} 7. Nxd4 {[%clk 01:32:17]} {[%emt 00:00:25]} Nb6 {[%clk
01:25:42]} {[%emt 00:07:05]} 8. Bb5 {[%clk 01:22:33]} {[%emt 00:10:15]} Bd7
{[%clk 01:20:04]} {[%emt 00:06:07]} 9. Re1+ {[%clk 01:21:57]} {[%emt 00:01:06]}
Be7 {[%clk 01:18:32]} {[%emt 00:02:02]} 10. Bxc6 {[%clk 01:14:51]} {[%emt
00:07:35]} Bxc6 {[%clk 01:18:29]} {[%emt 00:00:33]} 11. Qg4 {[%clk 01:14:35]}
{[%emt 00:00:46]} O-O {[%clk 01:09:03]} {[%emt 00:09:54]} 12. Bh6 {[%clk
01:00:55]} {[%emt 00:14:12]} Bf6 {[%clk 01:07:31]} {[%emt 00:02:02]} 13. Nxc6
{[%clk 00:56:56]} {[%emt 00:04:29]} bxc6 {[%clk 01:06:45]} {[%emt 00:01:15]} 14.
Nc3 {[%clk 00:56:40]} {[%emt 00:00:46]} Bxc3 {[%clk 01:04:01]} {[%emt
00:03:14]} 15. bxc3 {[%clk 00:55:45]} {[%emt 00:01:26]} Qf6 {[%clk 01:04:25]}
{[%emt 00:00:06]} 16. Bf4 {[%clk 00:55:34]} {[%emt 00:00:42]} Rfe8 {[%clk
01:01:11]} {[%emt 00:03:44]} 17. Qg3 {[%clk 00:51:23]} {[%emt 00:04:40]} Nd5
{[%clk 00:53:58]} {[%emt 00:07:43]} 18. Bxc7 {[%clk 00:49:07]} {[%emt
00:02:46]} Nxc7 {[%clk 00:51:50]} {[%emt 00:02:07]} 19. Qxc7 {[%clk 00:48:13]}
{[%emt 00:01:24]} Qxc3 {[%clk 00:52:13]} {[%emt 00:00:38]} 20. Rec1 {[%clk
00:46:16]} {[%emt 00:02:27]} h6 {[%clk 00:45:54]} {[%emt 00:06:49]} 21. h3
{[%clk 00:45:12]} {[%emt 00:01:34]} Re2 {[%clk 00:42:30]} {[%emt 00:03:54]} 22.
Qb7 {[%clk 00:43:57]} {[%emt 00:01:45]} Rae8 {[%clk 00:40:51]} {[%emt
00:02:09]} 23. Qb3 {[%clk 00:42:35]} {[%emt 00:01:53]} Qd2 {[%clk 00:37:13]}
{[%emt 00:04:08]} 24. Qf3 {[%clk 00:41:11]} {[%emt 00:01:54]} R8e6 {[%clk
00:35:53]} {[%emt 00:01:49]} 25. Rd1 {[%clk 00:36:07]} {[%emt 00:05:34]} Qxc2
{[%clk 00:33:20]} {[%emt 00:03:04]} 26. Rac1 {[%clk 00:36:09]} {[%emt
00:00:27]} Qxa2 {[%clk 00:32:04]} {[%emt 00:01:45]} 27. Rd7 {[%clk 00:33:06]}
{[%emt 00:03:33]} Rf6 {[%clk 00:29:18]} {[%emt 00:03:17]} 28. Qd3 {[%clk
00:31:17]} {[%emt 00:02:19]} g6 {[%clk 00:25:13]} {[%emt 00:04:35]} 29. Qg3
{[%clk 00:24:03]} {[%emt 00:07:43]} Rfxf2 {[%clk 00:22:08]} {[%emt 00:03:35]}
30. Ra1 {[%emt 00:01:29]} 0-1